[Event "Titled Tuesday Blitz May 23 Early 2023"]
[White "Smiechu"]
[Black "Zavortink, Matt"]
[BlackFideId "2034263"]
[WhiteElo "2319"]
[BlackElo "2454"]
[Result "1-0"]
[Round "09"]
[TimeControl "180+2"]
[Date "2023.05.23"]
[WhiteClock "0:00:13"]
[BlackClock "0:00:00"]

1. e4 {[%clk 0:03:00]}  e6 {[%clk 0:03:00]} 2. d4 {[%clk 0:02:59]}  d5 {[%clk 0:03:00]} 3. Bd3 {[%clk 0:03:00]}  dxe4 {[%clk 0:03:00]} 4. Bxe4 {[%clk 0:03:01]}  Nf6 {[%clk 0:03:00]} 5. Bf3 {[%clk 0:03:02]}  c5 {[%clk 0:03:01]} 6. Ne2 {[%clk 0:03:02]}  Nc6 {[%clk 0:02:58]} 7. Be3 {[%clk 0:03:02]}  Nd5 {[%clk 0:02:55]} 8. Bxd5 {[%clk 0:03:02]}  Qxd5 {[%clk 0:02:56]} 9. Nbc3 {[%clk 0:03:02]}  Qxg2 {[%clk 0:02:56]} 10. Rg1 {[%clk 0:03:03]}  Qxh2 {[%clk 0:02:55]} 11. Bf4 {[%clk 0:03:01]}  Qh3 {[%clk 0:02:44]} 12. Nb5 {[%clk 0:03:01]}  f6 {[%clk 0:02:44]} 13. Nc7+ {[%clk 0:02:58]}  Kf7 {[%clk 0:02:43]} 14. Nxa8 {[%clk 0:02:58]}  cxd4 {[%clk 0:02:43]} 15. a3 {[%clk 0:02:44]}  e5 {[%clk 0:02:39]} 16. Bg3 {[%clk 0:02:40]}  Bd6 {[%clk 0:02:10]} 17. Qd3 {[%clk 0:02:26]}  Qe6 {[%clk 0:01:41]} 18. Rh1 {[%clk 0:02:18]}  g6 {[%clk 0:01:31]} 19. f3 {[%clk 0:01:42]}  h5 {[%clk 0:01:28]} 20. Rg1 {[%clk 0:01:40]}  Bd7 {[%clk 0:01:22]} 21. Bf2 {[%clk 0:01:27]}  f5 {[%clk 0:01:20]} 22. O-O-O {[%clk 0:01:10]}  Qa2 {[%clk 0:01:07]} 23. Kd2 {[%clk 0:01:08]}  Rxa8 {[%clk 0:01:03]} 24. Ra1 {[%clk 0:01:08]}  Qe6 {[%clk 0:00:56]} 25. Rad1 {[%clk 0:01:08]}  Bf8 {[%clk 0:00:45]} 26. Kc1 {[%clk 0:01:06]}  Qa2 {[%clk 0:00:44]} 27. Qb5 {[%clk 0:00:56]}  Bh6+ {[%clk 0:00:41]} 28. f4 {[%clk 0:00:56]}  Rb8 {[%clk 0:00:31]} 29. Bg3 {[%clk 0:00:47]}  a6 {[%clk 0:00:28]} 30. Qb6 {[%clk 0:00:42]}  Be6 {[%clk 0:00:24]} 31. Qc7+ {[%clk 0:00:40]}  Kf8 {[%clk 0:00:20]} 32. Qd6+ {[%clk 0:00:39]}  Kf7 {[%clk 0:00:20]} 33. Qc7+ {[%clk 0:00:40]}  Kg8 {[%clk 0:00:20]} 34. Bh2 {[%clk 0:00:37]}  Bf7 {[%clk 0:00:19]} 35. Qd6 {[%clk 0:00:30]}  Qa1+ {[%clk 0:00:16]} 36. Kd2 {[%clk 0:00:30]}  Qxb2 {[%clk 0:00:17]} 37. Rxg6+ {[%clk 0:00:29]}  Bxg6 {[%clk 0:00:15]} 38. Qxg6+ {[%clk 0:00:29]}  Bg7 {[%clk 0:00:13]} 39. Rg1 {[%clk 0:00:30]}  Kf8 {[%clk 0:00:07]} 40. Qxg7+ {[%clk 0:00:29]}  Ke8 {[%clk 0:00:08]} 41. Qh7 {[%clk 0:00:28]}  Ne7 {[%clk 0:00:06]} 42. Rg7 {[%clk 0:00:28]}  Qxa3 {[%clk 0:00:05]} 43. fxe5 {[%clk 0:00:27]}  Rc8 {[%clk 0:00:04]} 44. Qxh5+ {[%clk 0:00:25]}  Kd8 {[%clk 0:00:04]} 45. e6 {[%clk 0:00:18]}  Qa5+ {[%clk 0:00:04]} 46. Kd1 {[%clk 0:00:15]}  Qa1+ {[%clk 0:00:04]} 47. Nc1 {[%clk 0:00:15]}  Qa3 {[%clk 0:00:00]} 48. Qh8+ {[%clk 0:00:13]} 1-0


[Site "https://www.chess.com"]

[Event "Titled Tuesday Blitz May 23 Early 2023"]
[White "Zaitsev, Alexander"]
[Black "Georg, Heinz"]
[WhiteFideId "4164490"]
[BlackFideId "4607295"]
[WhiteElo "2373"]
[BlackElo "2314"]
[Result "1-0"]
[Round "09"]
[TimeControl "180+2"]
[Date "2023.05.23"]
[WhiteClock "0:00:16"]
[BlackClock "0:00:00"]

1. e4 {[%clk 0:03:00]}  e5 {[%clk 0:02:58]} 2. Nc3 {[%clk 0:03:00]}  Nf6 {[%clk 0:02:57]} 3. Bc4 {[%clk 0:03:00]}  Nxe4 {[%clk 0:02:56]} 4. Qh5 {[%clk 0:02:59]}  Nd6 {[%clk 0:02:55]} 5. Qxe5+ {[%clk 0:02:59]}  Qe7 {[%clk 0:02:56]} 6. Qxe7+ {[%clk 0:03:00]}  Bxe7 {[%clk 0:02:56]} 7. Bb3 {[%clk 0:03:00]}  c6 {[%clk 0:02:51]} 8. Nf3 {[%clk 0:02:59]}  O-O {[%clk 0:02:51]} 9. d4 {[%clk 0:02:58]}  Nf5 {[%clk 0:02:50]} 10. d5 {[%clk 0:02:59]}  Bb4 {[%clk 0:02:48]} 11. O-O {[%clk 0:02:52]}  Na6 {[%clk 0:02:47]} 12. Bf4 {[%clk 0:02:39]}  Nc5 {[%clk 0:02:40]} 13. g4 {[%clk 0:02:33]}  Nxb3 {[%clk 0:02:39]} 14. axb3 {[%clk 0:02:28]}  Bd6 {[%clk 0:02:34]} 15. Bd2 {[%clk 0:01:50]}  Ne7 {[%clk 0:02:32]} 16. Ne4 {[%clk 0:01:45]}  Bb8 {[%clk 0:02:21]} 17. d6 {[%clk 0:01:40]}  Ng6 {[%clk 0:02:18]} 18. g5 {[%clk 0:01:28]}  b6 {[%clk 0:02:16]} 19. h4 {[%clk 0:01:16]}  c5 {[%clk 0:01:59]} 20. h5 {[%clk 0:01:11]}  Bb7 {[%clk 0:01:59]} 21. Rfe1 {[%clk 0:01:08]}  Nh8 {[%clk 0:01:45]} 22. Bf4 {[%clk 0:01:04]}  f5 {[%clk 0:01:41]} 23. gxf6 {[%clk 0:01:01]}  gxf6 {[%clk 0:01:41]} 24. Bh6 {[%clk 0:00:51]}  Bxe4 {[%clk 0:01:24]} 25. Rxe4 {[%clk 0:00:45]}  Rd8 {[%clk 0:01:21]} 26. Rd1 {[%clk 0:00:21]}  f5 {[%clk 0:01:07]} 27. Re7 {[%clk 0:00:18]}  Nf7 {[%clk 0:01:06]} 28. Bf4 {[%clk 0:00:18]}  a5 {[%clk 0:00:58]} 29. Kh2 {[%clk 0:00:18]}  b5 {[%clk 0:00:57]} 30. Nh4 {[%clk 0:00:18]}  Ra6 {[%clk 0:00:56]} 31. Nxf5 {[%clk 0:00:19]}  Kf8 {[%clk 0:00:49]} 32. h6 {[%clk 0:00:17]}  Bxd6 {[%clk 0:00:41]} 33. Rxf7+ {[%clk 0:00:16]}  Kxf7 {[%clk 0:00:40]} 34. Nxd6+ {[%clk 0:00:17]}  Ke6 {[%clk 0:00:39]} 35. Bg3 {[%clk 0:00:17]}  b4 {[%clk 0:00:29]} 36. Ne4 {[%clk 0:00:16]}  Kf5 {[%clk 0:00:26]} 37. Nxc5 {[%clk 0:00:16]}  Rxh6+ {[%clk 0:00:26]} 38. Kg2 {[%clk 0:00:16]}  d5 {[%clk 0:00:25]} 39. Nd3 {[%clk 0:00:16]}  Rc6 {[%clk 0:00:22]} 40. Rd2 {[%clk 0:00:15]}  d4 {[%clk 0:00:21]} 41. Re2 {[%clk 0:00:15]}  Rd5 {[%clk 0:00:18]} 42. Nf4 {[%clk 0:00:15]}  Rdc5 {[%clk 0:00:16]} 43. Nd3 {[%clk 0:00:14]}  Rxc2 {[%clk 0:00:15]} 44. Re5+ {[%clk 0:00:14]}  Kg6 {[%clk 0:00:14]} 45. Nf4+ {[%clk 0:00:14]}  Kf7 {[%clk 0:00:13]} 46. Rf5+ {[%clk 0:00:14]}  Kg7 {[%clk 0:00:11]} 47. Nd3 {[%clk 0:00:13]}  Rf6 {[%clk 0:00:07]} 48. Be5 {[%clk 0:00:13]}  Rc6 {[%clk 0:00:05]} 49. Bxf6+ {[%clk 0:00:14]}  Rxf6 {[%clk 0:00:05]} 50. Rxa5 {[%clk 0:00:13]}  Re6 {[%clk 0:00:04]} 51. Nxb4 {[%clk 0:00:13]}  Re2 {[%clk 0:00:04]} 52. Rd5 {[%clk 0:00:12]}  Rxb2 {[%clk 0:00:03]} 53. Rxd4 {[%clk 0:00:13]}  Rxb3 {[%clk 0:00:04]} 54. Nd5 {[%clk 0:00:13]}  Kg6 {[%clk 0:00:03]} 55. Ne3 {[%clk 0:00:14]}  h6 {[%clk 0:00:02]} 56. Rg4+ {[%clk 0:00:14]}  Kf6 {[%clk 0:00:02]} 57. Rc4 {[%clk 0:00:15]}  Rd3 {[%clk 0:00:00]} 58. Kf3 {[%clk 0:00:16]} 1-0


[Site "https://www.chess.com"]

[Event "Titled Tuesday Blitz May 23 Early 2023"]
[White "ChawitAp"]
[Black "Pinto, Daniel"]
[BlackFideId "3303144"]
[WhiteElo "2275"]
[BlackElo "2145"]
[Result "1-0"]
[Round "09"]
[TimeControl "180+2"]
[Date "2023.05.23"]
[WhiteClock "0:00:37"]
[BlackClock "0:00:03"]

1. d4 {[%clk 0:03:00]}  Nf6 {[%clk 0:02:53]} 2. Nf3 {[%clk 0:03:00]}  g6 {[%clk 0:02:53]} 3. c3 {[%clk 0:03:00]}  Bg7 {[%clk 0:02:54]} 4. Bg5 {[%clk 0:03:00]}  O-O {[%clk 0:02:54]} 5. Nbd2 {[%clk 0:03:01]}  c5 {[%clk 0:02:53]} 6. e3 {[%clk 0:03:00]}  cxd4 {[%clk 0:02:52]} 7. exd4 {[%clk 0:03:00]}  d6 {[%clk 0:02:53]} 8. Be2 {[%clk 0:03:01]}  Nc6 {[%clk 0:02:53]} 9. O-O {[%clk 0:03:01]}  h6 {[%clk 0:02:45]} 10. Bh4 {[%clk 0:03:00]}  e5 {[%clk 0:02:40]} 11. Nc4 {[%clk 0:02:48]}  e4 {[%clk 0:02:31]} 12. Nfd2 {[%clk 0:02:45]}  d5 {[%clk 0:02:25]} 13. Ne5 {[%clk 0:02:45]}  g5 {[%clk 0:01:56]} 14. Bg3 {[%clk 0:02:45]}  Nh7 {[%clk 0:01:55]} 15. Qb3 {[%clk 0:02:41]}  f5 {[%clk 0:01:43]} 16. f4 {[%clk 0:02:32]}  Bxe5 {[%clk 0:01:12]} 17. dxe5 {[%clk 0:02:22]}  Be6 {[%clk 0:01:13]} 18. Rad1 {[%clk 0:02:15]}  Qe7 {[%clk 0:01:10]} 19. Qc2 {[%clk 0:01:58]}  d4 {[%clk 0:01:08]} 20. Bc4 {[%clk 0:01:50]}  d3 {[%clk 0:00:47]} 21. Qb3 {[%clk 0:01:50]}  Bxc4 {[%clk 0:00:47]} 22. Nxc4 {[%clk 0:01:51]}  Kh8 {[%clk 0:00:43]} 23. Nd6 {[%clk 0:01:46]}  Rad8 {[%clk 0:00:15]} 24. fxg5 {[%clk 0:01:43]}  hxg5 {[%clk 0:00:10]} 25. Nxf5 {[%clk 0:01:43]}  Qc5+ {[%clk 0:00:10]} 26. Kh1 {[%clk 0:01:34]}  e3 {[%clk 0:00:10]} 27. Nxe3 {[%clk 0:01:13]}  Qxe3 {[%clk 0:00:09]} 28. Rfe1 {[%clk 0:01:09]}  Qc5 {[%clk 0:00:06]} 29. c4 {[%clk 0:01:08]}  d2 {[%clk 0:00:05]} 30. Re2 {[%clk 0:01:07]}  Nd4 {[%clk 0:00:03]} 31. Qe3 {[%clk 0:00:59]}  Qxc4 {[%clk 0:00:02]} 32. Rexd2 {[%clk 0:00:59]}  Ne6 {[%clk 0:00:03]} 33. h3 {[%clk 0:00:52]}  Rxd2 {[%clk 0:00:02]} 34. Rxd2 {[%clk 0:00:50]}  Rf1+ {[%clk 0:00:02]} 35. Kh2 {[%clk 0:00:51]}  Qc1 {[%clk 0:00:03]} 36. Bf2 {[%clk 0:00:46]}  Rh1+ {[%clk 0:00:03]} 37. Kg3 {[%clk 0:00:46]}  Qc8 {[%clk 0:00:03]} 38. Rd6 {[%clk 0:00:45]}  Qe8 {[%clk 0:00:02]} 39. Qd2 {[%clk 0:00:42]}  Nf4 {[%clk 0:00:03]} 40. Rd8 {[%clk 0:00:42]}  Nh5+ {[%clk 0:00:03]} 41. Kg4 {[%clk 0:00:38]}  Ng7 {[%clk 0:00:02]} 42. Rxe8+ {[%clk 0:00:37]}  Nxe8 {[%clk 0:00:03]} 1-0


[Site "https://www.chess.com"]

[Event "Titled Tuesday Blitz May 23 Early 2023"]
[White "Gatterer, Florian"]
[Black "lluiss"]
[WhiteFideId "811688"]
[WhiteElo "2221"]
[BlackElo "2258"]
[Result "0-1"]
[Round "09"]
[TimeControl "180+2"]
[Date "2023.05.23"]
[WhiteClock "0:00:16"]
[BlackClock "0:00:31"]

1. e4 {[%clk 0:03:00]}  c5 {[%clk 0:02:58]} 2. Nf3 {[%clk 0:02:55]}  d6 {[%clk 0:02:57]} 3. Bb5+ {[%clk 0:02:54]}  Nd7 {[%clk 0:02:55]} 4. a4 {[%clk 0:02:53]}  Nf6 {[%clk 0:02:51]} 5. O-O {[%clk 0:02:49]}  Nxe4 {[%clk 0:02:44]} 6. Re1 {[%clk 0:02:49]}  Nf6 {[%clk 0:02:43]} 7. d4 {[%clk 0:02:49]}  a6 {[%clk 0:02:34]} 8. Bd3 {[%clk 0:02:43]}  e6 {[%clk 0:02:32]} 9. Nc3 {[%clk 0:02:41]}  Be7 {[%clk 0:02:30]} 10. d5 {[%clk 0:02:42]}  e5 {[%clk 0:02:29]} 11. Bg5 {[%clk 0:02:29]}  O-O {[%clk 0:02:26]} 12. h3 {[%clk 0:02:27]}  h6 {[%clk 0:02:26]} 13. Be3 {[%clk 0:02:25]}  b6 {[%clk 0:02:17]} 14. b3 {[%clk 0:02:23]}  Bb7 {[%clk 0:02:16]} 15. Bc4 {[%clk 0:02:21]}  Ne8 {[%clk 0:02:11]} 16. Qe2 {[%clk 0:02:19]}  Nc7 {[%clk 0:02:11]} 17. Red1 {[%clk 0:02:16]}  f5 {[%clk 0:01:33]} 18. Nh2 {[%clk 0:02:11]}  Qe8 {[%clk 0:01:28]} 19. f4 {[%clk 0:02:02]}  Bf6 {[%clk 0:01:23]} 20. Qd2 {[%clk 0:01:47]}  exf4 {[%clk 0:01:11]} 21. Bxf4 {[%clk 0:01:42]}  Ne5 {[%clk 0:01:11]} 22. Re1 {[%clk 0:01:36]}  Qd7 {[%clk 0:01:00]} 23. Rad1 {[%clk 0:01:19]}  b5 {[%clk 0:00:57]} 24. axb5 {[%clk 0:01:12]}  axb5 {[%clk 0:00:55]} 25. Nxb5 {[%clk 0:01:08]}  Nxb5 {[%clk 0:00:53]} 26. Bxe5 {[%clk 0:00:47]}  Bxe5 {[%clk 0:00:52]} 27. Nf3 {[%clk 0:00:47]}  Bc3 {[%clk 0:00:50]} 28. Bxb5 {[%clk 0:00:47]}  Bxd2 {[%clk 0:00:49]} 29. Bxd7 {[%clk 0:00:47]}  Bxe1 {[%clk 0:00:50]} 30. Be6+ {[%clk 0:00:47]}  Kh7 {[%clk 0:00:47]} 31. Rxe1 {[%clk 0:00:46]}  g6 {[%clk 0:00:47]} 32. Nd2 {[%clk 0:00:44]}  Ra2 {[%clk 0:00:44]} 33. Rc1 {[%clk 0:00:43]}  Ba6 {[%clk 0:00:38]} 34. Kh2 {[%clk 0:00:36]}  Kg7 {[%clk 0:00:38]} 35. Kg3 {[%clk 0:00:25]}  Kf6 {[%clk 0:00:38]} 36. Kf4 {[%clk 0:00:25]}  c4 {[%clk 0:00:37]} 37. Nxc4 {[%clk 0:00:16]}  Bxc4 {[%clk 0:00:36]} 38. bxc4 {[%clk 0:00:17]}  Ra3 {[%clk 0:00:32]} 39. Rb1 {[%clk 0:00:16]}  g5# {[%clk 0:00:31]} 0-1


[Site "https://www.chess.com"]

[Event "Titled Tuesday Blitz May 23 Early 2023"]
[White "Jakubowska, Anna"]
[Black "Martin, Lewis"]
[WhiteFideId "1121952"]
[BlackFideId "410551"]
[WhiteElo "2001"]
[BlackElo "2145"]
[Result "0-1"]
[Round "09"]
[TimeControl "180+2"]
[Date "2023.05.23"]
[WhiteClock "0:00:03"]
[BlackClock "0:00:33"]

1. e4 {[%clk 0:03:00]}  c5 {[%clk 0:02:49]} 2. Nf3 {[%clk 0:02:59]}  d6 {[%clk 0:02:49]} 3. d4 {[%clk 0:02:59]}  cxd4 {[%clk 0:02:49]} 4. Qxd4 {[%clk 0:02:58]}  a6 {[%clk 0:02:46]} 5. c4 {[%clk 0:02:52]}  Nc6 {[%clk 0:02:47]} 6. Qd3 {[%clk 0:02:51]}  Nf6 {[%clk 0:02:47]} 7. Nc3 {[%clk 0:02:51]}  e6 {[%clk 0:02:44]} 8. Bf4 {[%clk 0:02:44]}  Be7 {[%clk 0:02:40]} 9. Rd1 {[%clk 0:02:37]}  e5 {[%clk 0:02:40]} 10. Bg5 {[%clk 0:02:36]}  Bg4 {[%clk 0:02:37]} 11. Bxf6 {[%clk 0:02:30]}  gxf6 {[%clk 0:02:36]} 12. Nd5 {[%clk 0:02:22]}  Bxf3 {[%clk 0:02:33]} 13. gxf3 {[%clk 0:02:17]}  Nd4 {[%clk 0:02:31]} 14. Be2 {[%clk 0:02:10]}  Rg8 {[%clk 0:02:18]} 15. b3 {[%clk 0:02:04]}  Rc8 {[%clk 0:02:11]} 16. f4 {[%clk 0:01:56]}  Ne6 {[%clk 0:02:08]} 17. Qh3 {[%clk 0:01:32]}  Qa5+ {[%clk 0:01:54]} 18. Rd2 {[%clk 0:01:31]}  Qc5 {[%clk 0:01:32]} 19. Bg4 {[%clk 0:01:17]}  Kd7 {[%clk 0:00:59]} 20. fxe5 {[%clk 0:01:11]}  fxe5 {[%clk 0:00:57]} 21. Ne3 {[%clk 0:01:06]}  Bg5 {[%clk 0:00:52]} 22. Bxe6+ {[%clk 0:00:58]}  fxe6 {[%clk 0:00:50]} 23. Qxh7+ {[%clk 0:00:58]}  Kc6 {[%clk 0:00:50]} 24. Rd3 {[%clk 0:00:49]}  Qa5+ {[%clk 0:00:42]} 25. Rd2 {[%clk 0:00:32]}  Rgf8 {[%clk 0:00:40]} 26. Qh3 {[%clk 0:00:27]}  Rxf2 {[%clk 0:00:38]} 27. b4 {[%clk 0:00:16]}  Qxb4 {[%clk 0:00:37]} 28. Nf1 {[%clk 0:00:07]}  Rxd2 {[%clk 0:00:33]} 29. Nxd2 {[%clk 0:00:07]}  Qxd2+ {[%clk 0:00:33]} 30. Kf1 {[%clk 0:00:03]}  Rf8+ {[%clk 0:00:33]} 0-1


[Site "https://www.chess.com"]

[Event "Titled Tuesday Blitz May 23 Early 2023"]
[White "ChesscularGodofchess"]
[Black "Kohler, Aran"]
[BlackFideId "1002856"]
[WhiteElo "2160"]
[BlackElo "2393"]
[Result "1-0"]
[Round "09"]
[TimeControl "180+2"]
[Date "2023.05.23"]
[WhiteClock "0:01:16"]
[BlackClock "0:00:00"]

1. d4 {[%clk 0:03:00]}  d5 {[%clk 0:02:59]} 2. Nf3 {[%clk 0:03:01]}  c6 {[%clk 0:02:58]} 3. Nbd2 {[%clk 0:03:01]}  Bf5 {[%clk 0:02:57]} 4. e3 {[%clk 0:03:00]}  e6 {[%clk 0:02:56]} 5. Ne5 {[%clk 0:03:00]}  h6 {[%clk 0:02:28]} 6. g4 {[%clk 0:02:58]}  Bh7 {[%clk 0:02:27]} 7. Bd3 {[%clk 0:02:56]}  Nf6 {[%clk 0:02:23]} 8. Bxh7 {[%clk 0:02:55]}  Nxh7 {[%clk 0:02:23]} 9. b3 {[%clk 0:02:52]}  c5 {[%clk 0:02:18]} 10. Bb2 {[%clk 0:02:52]}  Nc6 {[%clk 0:02:17]} 11. Ndf3 {[%clk 0:02:49]}  cxd4 {[%clk 0:02:12]} 12. exd4 {[%clk 0:02:50]}  Bb4+ {[%clk 0:02:10]} 13. c3 {[%clk 0:02:50]}  Bd6 {[%clk 0:02:10]} 14. O-O {[%clk 0:02:48]}  Nxe5 {[%clk 0:02:07]} 15. Nxe5 {[%clk 0:02:47]}  Bxe5 {[%clk 0:01:59]} 16. dxe5 {[%clk 0:02:48]}  Ng5 {[%clk 0:01:51]} 17. f4 {[%clk 0:02:38]}  Ne4 {[%clk 0:01:45]} 18. Ba3 {[%clk 0:02:32]}  Qb6+ {[%clk 0:01:36]} 19. Kg2 {[%clk 0:02:30]}  Nxc3 {[%clk 0:01:29]} 20. Qd3 {[%clk 0:02:25]}  Nb5 {[%clk 0:01:20]} 21. Bb4 {[%clk 0:02:21]}  a5 {[%clk 0:01:19]} 22. Bd2 {[%clk 0:02:04]}  O-O {[%clk 0:01:17]} 23. Rac1 {[%clk 0:02:01]}  Rac8 {[%clk 0:01:04]} 24. f5 {[%clk 0:02:01]}  Qd4 {[%clk 0:01:02]} 25. Qe2 {[%clk 0:01:50]}  Qb2 {[%clk 0:00:28]} 26. f6 {[%clk 0:01:34]}  g6 {[%clk 0:00:20]} 27. Qe3 {[%clk 0:01:29]}  g5 {[%clk 0:00:11]} 28. Rxc8 {[%clk 0:01:24]}  Rxc8 {[%clk 0:00:11]} 29. Rf2 {[%clk 0:01:24]}  d4 {[%clk 0:00:09]} 30. Qh3 {[%clk 0:01:18]}  d3 {[%clk 0:00:00]} 31. Qxh6 {[%clk 0:01:16]} 1-0


[Site "https://www.chess.com"]

[Event "Titled Tuesday Blitz May 23 Early 2023"]
[White "Sadubayev, Airat"]
[Black "Zampronha, Wladimir Camilo"]
[WhiteFideId "13713264"]
[BlackFideId "2103087"]
[WhiteElo "2157"]
[BlackElo "2176"]
[Result "0-1"]
[Round "09"]
[TimeControl "180+2"]
[Date "2023.05.23"]
[WhiteClock "0:00:07"]
[BlackClock "0:00:15"]

1. d4 {[%clk 0:02:56]}  Nf6 {[%clk 0:02:59]} 2. c4 {[%clk 0:02:56]}  e6 {[%clk 0:02:59]} 3. Nf3 {[%clk 0:02:56]}  d5 {[%clk 0:02:57]} 4. g3 {[%clk 0:02:56]}  Be7 {[%clk 0:02:56]} 5. Bg2 {[%clk 0:02:56]}  O-O {[%clk 0:02:56]} 6. O-O {[%clk 0:02:57]}  dxc4 {[%clk 0:02:56]} 7. Ne5 {[%clk 0:02:53]}  Nc6 {[%clk 0:02:55]} 8. Nxc6 {[%clk 0:02:50]}  bxc6 {[%clk 0:02:56]} 9. Na3 {[%clk 0:02:41]}  c3 {[%clk 0:02:50]} 10. bxc3 {[%clk 0:02:38]}  Rb8 {[%clk 0:02:47]} 11. Nc2 {[%clk 0:02:25]}  c5 {[%clk 0:02:45]} 12. Bf4 {[%clk 0:02:20]}  cxd4 {[%clk 0:02:44]} 13. cxd4 {[%clk 0:02:21]}  Nd5 {[%clk 0:02:44]} 14. Bd2 {[%clk 0:02:18]}  Ba6 {[%clk 0:02:39]} 15. Re1 {[%clk 0:02:14]}  Nb4 {[%clk 0:02:33]} 16. Bc3 {[%clk 0:01:54]}  Nd5 {[%clk 0:02:22]} 17. Ba5 {[%clk 0:01:47]}  Rb5 {[%clk 0:02:06]} 18. Qd2 {[%clk 0:01:40]}  Qd7 {[%clk 0:01:57]} 19. e4 {[%clk 0:01:37]}  Nb6 {[%clk 0:01:57]} 20. a4 {[%clk 0:01:31]}  Nc4 {[%clk 0:01:54]} 21. axb5 {[%clk 0:01:22]}  Nxd2 {[%clk 0:01:53]} 22. bxa6 {[%clk 0:01:21]}  Nb3 {[%clk 0:01:53]} 23. Ra2 {[%clk 0:01:18]}  Nxd4 {[%clk 0:01:15]} 24. Nxd4 {[%clk 0:01:10]}  Qxd4 {[%clk 0:01:15]} 25. Bxc7 {[%clk 0:01:09]}  Qc4 {[%clk 0:01:13]} 26. Rb2 {[%clk 0:00:58]}  Qxc7 {[%clk 0:01:11]} 27. Rb7 {[%clk 0:00:58]}  Qc5 {[%clk 0:01:05]} 28. h4 {[%clk 0:00:52]}  Bf6 {[%clk 0:01:04]} 29. Reb1 {[%clk 0:00:42]}  Bd4 {[%clk 0:01:04]} 30. R7b5 {[%clk 0:00:35]}  Qc2 {[%clk 0:00:48]} 31. Rf1 {[%clk 0:00:29]}  e5 {[%clk 0:00:45]} 32. Rb7 {[%clk 0:00:20]}  Qc4 {[%clk 0:00:41]} 33. Bh3 {[%clk 0:00:16]}  Qxa6 {[%clk 0:00:40]} 34. Rc7 {[%clk 0:00:16]}  Qb6 {[%clk 0:00:39]} 35. Rd7 {[%clk 0:00:15]}  a5 {[%clk 0:00:39]} 36. Kg2 {[%clk 0:00:13]}  a4 {[%clk 0:00:39]} 37. Rd1 {[%clk 0:00:10]}  a3 {[%clk 0:00:39]} 38. f4 {[%clk 0:00:11]}  a2 {[%clk 0:00:39]} 39. fxe5 {[%clk 0:00:06]}  a1=Q {[%clk 0:00:38]} 40. Rxa1 {[%clk 0:00:06]}  Bxa1 {[%clk 0:00:39]} 41. Rd6 {[%clk 0:00:04]}  Qd8 {[%clk 0:00:37]} 42. Rxd8 {[%clk 0:00:02]}  Rxd8 {[%clk 0:00:37]} 43. e6 {[%clk 0:00:03]}  Kf8 {[%clk 0:00:34]} 44. exf7 {[%clk 0:00:02]}  Kxf7 {[%clk 0:00:35]} 45. Kf3 {[%clk 0:00:02]}  Be5 {[%clk 0:00:34]} 46. Kg4 {[%clk 0:00:02]}  Kf6 {[%clk 0:00:35]} 47. Kf3 {[%clk 0:00:02]}  Rd3+ {[%clk 0:00:34]} 48. Ke2 {[%clk 0:00:03]}  Rxg3 {[%clk 0:00:34]} 49. Bf1 {[%clk 0:00:04]}  Rg4 {[%clk 0:00:30]} 50. h5 {[%clk 0:00:05]}  Rxe4+ {[%clk 0:00:30]} 51. Kd3 {[%clk 0:00:05]}  Rd4+ {[%clk 0:00:30]} 52. Ke3 {[%clk 0:00:05]}  h6 {[%clk 0:00:30]} 53. Bg2 {[%clk 0:00:04]}  Rb4 {[%clk 0:00:29]} 54. Bf1 {[%clk 0:00:05]}  Kg5 {[%clk 0:00:28]} 55. Bg2 {[%clk 0:00:03]}  Rb2 {[%clk 0:00:27]} 56. Be4 {[%clk 0:00:03]}  Kxh5 {[%clk 0:00:25]} 57. Bf3+ {[%clk 0:00:03]}  Kg5 {[%clk 0:00:25]} 58. Ke4 {[%clk 0:00:04]}  h5 {[%clk 0:00:25]} 59. Kxe5 {[%clk 0:00:04]}  Rf2 {[%clk 0:00:24]} 60. Be4 {[%clk 0:00:04]}  h4 {[%clk 0:00:22]} 61. Kd4 {[%clk 0:00:04]}  h3 {[%clk 0:00:20]} 62. Ke3 {[%clk 0:00:05]}  Rf4 {[%clk 0:00:20]} 63. Bh1 {[%clk 0:00:04]}  Rf6 {[%clk 0:00:21]} 64. Ke2 {[%clk 0:00:04]}  Kh4 {[%clk 0:00:21]} 65. Ke3 {[%clk 0:00:04]}  g5 {[%clk 0:00:21]} 66. Ke2 {[%clk 0:00:05]}  Rf8 {[%clk 0:00:22]} 67. Ke3 {[%clk 0:00:05]}  g4 {[%clk 0:00:23]} 68. Ke2 {[%clk 0:00:05]}  g3 {[%clk 0:00:23]} 69. Be4 {[%clk 0:00:05]}  g2 {[%clk 0:00:24]} 70. Bxg2 {[%clk 0:00:05]}  hxg2 {[%clk 0:00:24]} 71. Ke3 {[%clk 0:00:06]}  Kg3 {[%clk 0:00:25]} 72. Kd3 {[%clk 0:00:07]}  g1=Q {[%clk 0:00:25]} 73. Kc4 {[%clk 0:00:07]}  Qd1 {[%clk 0:00:24]} 74. Kc5 {[%clk 0:00:08]}  Rc8+ {[%clk 0:00:15]} 75. Kb6 {[%clk 0:00:07]} 0-1


[Site "https://www.chess.com"]